bitfinex/quotes_BTCUSD_20230115
["timestamp","ask_amount","ask_price","bid_price","bid_amount"]
[1673791337542,0.00446008,20706.0,20705.0,2.39071189]
[1673791337794,0.00446008,20706.0,20705.0,2.05717556]
[1673791338624,0.00446008,20706.0,20705.0,2.35314302]
[1673791338842,0.00446008,20706.0,20705.0,2.05717556]
[1673791339109,0.00446008,20706.0,20705.0,2.35717556]
[1673791344213,0.00446008,20709.0,20706.0,0.55402536]
[1673791344479,0.00446008,20709.0,20707.0,2.33448569]
[1673791345258,0.00446008,20709.0,20708.0,0.1]
[1673791345633,0.00446008,20709.0,20708.0,1.07431]
[1673791345825,0.00446008,20709.0,20708.0,1.37431]
[1673791346031,0.00446008,20709.0,20708.0,1.76151198]
[1673791346973,0.00446008,20709.0,20708.0,1.85351198]
[1673791347188,0.00446008,20709.0,20708.0,1.55351198]
[1673791347406,0.00446008,20709.0,20708.0,1.85351198]
[1673791348552,0.00322173,20709.0,20708.0,1.85351198]
[1673791351963,0.00322173,20709.0,20708.0,2.13797637]
[1673791352210,0.00322173,20709.0,20708.0,1.83797637]
[1673791353267,0.00322173,20709.0,20708.0,1.55351198]
[1673791353499,0.00322173,20709.0,20708.0,1.85351198]
[1673791353748,0.00322173,20709.0,20708.0,1.76151198]
[1673791353997,0.00322173,20709.0,20708.0,1.85451198]
[1673791355006,0.00322173,20709.0,20708.0,1.76151198]
[1673791355263,0.00322173,20709.0,20708.0,1.85351198]
[1673791355500,0.00322173,20709.0,20708.0,1.9552707]
[1673791356492,0.00322173,20709.0,20708.0,1.55351198]
[1673791357216,0.00322173,20709.0,20708.0,2.08715363]
[1673791357461,0.00322173,20709.0,20708.0,2.10066539]
[1673791357931,0.19394768,20709.0,20708.0,1.61346341]
[1673791358154,0.00322173,20709.0,20708.0,1.61346341]
[1673791358383,0.00322173,20709.0,20708.0,1.60496341]
[1673791359024,0.00322173,20709.0,20708.0,1.51296341]
[1673791359237,0.00322173,20709.0,20708.0,1.60596341]
[1673791359448,0.00322173,20709.0,20708.0,1.90854789]
[1673791359847,0.00322173,20709.0,20708.0,1.91704789]
[1673791363857,0.34924254,20711.0,20709.0,0.4522735]
[1673791364093,0.34924254,20711.0,20709.0,1.3180045]
[1673791364384,0.34924254,20711.0,20710.0,0.2444994]
[1673791364865,0.67031954,20711.0,20710.0,0.2444994]
[1673791365119,0.34924254,20711.0,20710.0,0.2444994]
[1673791365349,0.00400008,20712.0,20710.0,1.02585108]
[1673791365593,0.00400008,20712.0,20710.0,1.11885108]
[1673791365827,0.00400008,20712.0,20711.0,0.16017151]
[1673791366079,0.32507708,20712.0,20711.0,0.16017151]
[1673791366331,0.00400008,20712.0,20711.0,0.16017151]
[1673791366581,0.00400008,20712.0,20711.0,0.64300651]
[1673791366866,0.00400008,20712.0,20711.0,1.13434151]
[1673791367060,0.00400008,20712.0,20711.0,1.48423679]
[1673791368035,0.00400008,20712.0,20711.0,1.57823679]
[1673791368300,0.00400008,20712.0,20711.0,1.48423679]
[1673791368548,0.00400008,20712.0,20711.0,1.57723679]
[1673791368799,0.00400008,20712.0,20711.0,1.41706528]
[1673791369755,0.00400008,20712.0,20711.0,1.32406528]
[1673791369997,0.00400008,20712.0,20711.0,1.41806528]
[1673791370494,0.09287008,20712.0,20711.0,0.93523028]
[1673791370774,0.87556535,20712.0,20711.0,0.585335]
[1673791371259,1.09187044,20712.0,20711.0,0.585335]
[1673791371502,0.00400008,20712.0,20711.0,1.50887881]
[1673791374656,0.00400008,20712.0,20711.0,1.41487881]
[1673791374892,0.00400008,20712.0,20711.0,1.50787881]
[1673791375144,0.00400008,20712.0,20711.0,1.41487881]
[1673791375389,0.00400008,20712.0,20711.0,1.50687881]
[1673791375928,0.00400008,20712.0,20711.0,1.41487881]
[1673791376179,0.00400008,20712.0,20711.0,1.50787881]
[1673791376419,0.09287008,20712.0,20711.0,0.584335]
[1673791376671,0.93358135,20712.0,20711.0,0.584335]
[1673791377195,0.61250435,20712.0,20711.0,0.584335]
[1673791377443,0.61250435,20712.0,20711.0,0.491335]
[1673791378158,0.52363435,20712.0,20711.0,0.585335]
[1673791378394,0.52363435,20712.0,20711.0,0.73007772]
[1673791378654,0.5234914,20712.0,20711.0,0.73007772]
[1673791379128,0.5234914,20712.0,20711.0,0.094]
[1673791379377,1.06087349,20712.0,20711.0,0.094]
[1673791379614,0.5234914,20712.0,20711.0,0.094]
[1673791379860,0.73979649,20712.0,20711.0,0.094]
[1673791380097,0.5234914,20712.0,20711.0,0.094]
[1673791380335,0.73979649,20712.0,20711.0,0.28184453]
[1673791380584,1.06087349,20712.0,20711.0,0.28184453]
[1673791380844,0.5234914,20712.0,20711.0,0.28184453]
[1673791381596,0.8445684,20712.0,20711.0,0.28184453]
[1673791381875,0.5234914,20712.0,20711.0,0.28184453]
[1673791382136,0.5234914,20712.0,20711.0,0.094]
[1673791382379,0.8445684,20712.0,20711.0,0.094]
[1673791382612,0.5234914,20712.0,20711.0,0.094]
[1673791383341,0.5234914,20712.0,20711.0,0.576835]
[1673791383605,0.00385713,20712.0,20711.0,1.59722281]
[1673791384357,0.00385713,20712.0,20711.0,1.50322281]
[1673791384358,0.14806053,20712.0,20711.0,1.50322281]
[1673791384617,0.14806053,20712.0,20711.0,1.59622281]
[1673791385131,0.14806053,20712.0,20711.0,1.25501433]
[1673791385384,0.00385713,20712.0,20711.0,1.25501433]
[1673791385637,0.00385713,20712.0,20711.0,1.60738533]
[1673791385890,0.00385713,20712.0,20711.0,1.65853104]
[1673791386135,0.00385713,20712.0,20711.0,1.70135241]
[1673791386394,0.00385713,20712.0,20711.0,1.5572067]
[1673791388128,0.00385713,20712.0,20711.0,1.70135241]
[1673791388377,0.00385713,20712.0,20711.0,1.5572067]
[1673791388627,0.00385713,20712.0,20711.0,1.70135241]
[1673791388873,0.00385713,20712.0,20711.0,1.60835241]
[1673791389133,0.00385713,20712.0,20711.0,1.70135241]
[1673791390630,0.00385713,20712.0,20711.0,1.60835241]
[1673791390877,0.00385713,20712.0,20711.0,1.70135241]
[1673791392895,0.00385713,20712.0,20711.0,1.73674975]
[1673791393140,0.00385713,20712.0,20711.0,2.01607885]
[1673791393381,0.00385713,20712.0,20711.0,2.01655319]
[1673791393622,0.00385713,20712.0,20711.0,1.92355322]
[1673791393880,9.75e-06,20713.0,20712.0,0.42010311]
[1673791394132,9.75e-06,20713.0,20712.0,2.68895714]
[1673791395437,9.75e-06,20713.0,20712.0,2.21892938]
[1673791395675,9.75e-06,20713.0,20712.0,2.59993694]
[1673791395963,9.75e-06,20713.0,20712.0,2.45513901]
[1673791396457,9.75e-06,20713.0,20712.0,2.23129262]
[1673791396681,9.75e-06,20713.0,20712.0,2.521887]
[1673791396920,9.75e-06,20713.0,20712.0,3.0699647]
[1673791397193,9.75e-06,20713.0,20712.0,2.48095714]
[1673791397652,9.75e-06,20713.0,20712.0,3.1516583]
[1673791398145,9.75e-06,20713.0,20712.0,2.97782154]
[1673791398397,9.75e-06,20713.0,20712.0,2.75865136]
[1673791398877,9.75e-06,20713.0,20712.0,2.97521329]
[1673791399113,9.75e-06,20713.0,20712.0,2.70835115]
[1673791399365,9.75e-06,20713.0,20712.0,3.06982154]
[1673791399857,9.75e-06,20713.0,20712.0,2.78095714]
[1673791400343,9.75e-06,20713.0,20712.0,3.06957943]
[1673791402046,9.75e-06,20713.0,20712.0,2.76957943]
[1673791402460,9.75e-06,20713.0,20712.0,3.06957943]
[1673791403232,9.75e-06,20713.0,20712.0,2.9245245]
[1673791403493,9.75e-06,20713.0,20712.0,3.29453482]
[1673791403752,9.75e-06,20713.0,20712.0,2.37299251]
[1673791404258,9.75e-06,20713.0,20712.0,2.28099251]
[1673791404513,9.75e-06,20713.0,20712.0,2.37299251]
[1673791404777,9.75e-06,20713.0,20712.0,2.21693256]
[1673791405286,9.75e-06,20713.0,20712.0,2.37433154]
[1673791405784,9.75e-06,20713.0,20712.0,2.0005171]
[1673791406323,9.75e-06,20713.0,20712.0,2.24834724]
[1673791406811,9.75e-06,20713.0,20712.0,2.03193178]
[1673791407608,9.75e-06,20713.0,20712.0,2.24834724]
[1673791408345,9.75e-06,20713.0,20712.0,2.03193178]
[1673791408645,9.75e-06,20713.0,20712.0,2.33193178]
[1673791408858,9.75e-06,20713.0,20712.0,2.70560956]
[1673791409102,9.75e-06,20713.0,20712.0,2.30418456]
[1673791409362,9.75e-06,20713.0,20712.0,3.0707818]
[1673791410369,9.75e-06,20713.0,20712.0,2.9787818]
[1673791410839,9.75e-06,20713.0,20712.0,3.0707818]
[1673791411598,9.75e-06,20713.0,20712.0,2.42068912]
[1673791412114,0.00446008,20714.0,20713.0,0.09074025]
[1673791412372,0.00446008,20714.0,20713.0,3.09715175]
[1673791413155,0.00446008,20714.0,20713.0,3.18915175]
[1673791413411,0.02894625,20715.0,20714.0,0.19514992]
[1673791413731,0.02894625,20715.0,20714.0,2.75267821]
[1673791413955,0.02894625,20715.0,20714.0,3.2267812]
[1673791414194,0.02514891,20715.0,20714.0,3.22668646]
[1673791414710,0.02514891,20715.0,20714.0,2.9383207]
[1673791415495,0.00517975,20716.0,20714.0,3.1797007]
[1673791415754,0.00517975,20716.0,20715.0,1.63953705]
[1673791416012,0.00463826,20717.0,20716.0,0.1]
[1673791416278,0.00463826,20717.0,20716.0,1.85113769]
[1673791416549,0.00463826,20717.0,20716.0,2.22458309]
[1673791416824,0.00463826,20717.0,20716.0,2.6885355]
[1673791417337,0.00463826,20717.0,20716.0,2.7805355]
[1673791417660,0.00463826,20717.0,20716.0,2.92464133]
[1673791417894,0.00463826,20717.0,20716.0,2.63641554]
[1673791418411,0.00463826,20717.0,20716.0,2.92464133]
[1673791418932,0.00463826,20717.0,20716.0,2.83264133]
[1673791419216,0.00463826,20717.0,20716.0,2.92464133]
[1673791419444,0.00463826,20717.0,20716.0,2.70845825]
[1673791419445,8.26e-06,20717.0,20716.0,2.70845825]
[1673791419698,8.26e-06,20717.0,20716.0,3.06888178]
[1673791419996,8.26e-06,20717.0,20716.0,3.02200599]
[1673791420262,8.26e-06,20717.0,20716.0,3.31016333]
[1673791420517,8.26e-06,20717.0,20716.0,3.21816333]
[1673791420780,8.26e-06,20717.0,20716.0,3.06881333]
[1673791421538,8.26e-06,20717.0,20716.0,3.26142063]
[1673791421822,8.26e-06,20717.0,20716.0,2.29982876]
[1673791422109,8.26e-06,20717.0,20716.0,1.37726845]
[1673791422382,8.26e-06,20717.0,20716.0,0.574718]
[1673791423932,8.26e-06,20717.0,20716.0,1.057436]
[1673791424184,8.26e-06,20717.0,20716.0,1.065936]
[1673791425407,8.26e-06,20717.0,20716.0,1.305936]
[1673791425658,8.26e-06,20717.0,20716.0,1.65988875]
[1673791426678,8.26e-06,20717.0,20716.0,2.03548908]
[1673791427201,8.26e-06,20717.0,20716.0,2.17961426]
[1673791427926,8.26e-06,20717.0,20716.0,2.39576321]
[1673791428167,8.26e-06,20717.0,20716.0,2.8418148]
[1673791428702,8.26e-06,20717.0,20716.0,2.84191688]
[1673791428962,8.26e-06,20717.0,20716.0,2.98587022]
[1673791429269,8.26e-06,20717.0,20716.0,2.68587022]
[1673791429484,8.26e-06,20717.0,20716.0,2.69768962]
[1673791429735,8.26e-06,20717.0,20716.0,2.98587022]
[1673791429997,8.26e-06,20717.0,20716.0,2.69768962]
[1673791430265,8.26e-06,20717.0,20716.0,2.98587022]
[1673791431331,8.26e-06,20717.0,20716.0,2.76972127]
[1673791431582,8.26e-06,20717.0,20716.0,3.46332105]
[1673791431843,8.26e-06,20717.0,20716.0,3.52565838]
[1673791432109,8.26e-06,20717.0,20716.0,3.23747778]
[1673791432370,8.26e-06,20717.0,20716.0,3.52608572]
[1673791432647,8.26e-06,20717.0,20716.0,3.5260869]
[1673791433217,8.26e-06,20717.0,20716.0,3.08213448]
[1673791433481,8.26e-06,20717.0,20716.0,2.57532915]
[1673791433741,8.26e-06,20717.0,20716.0,2.93621025]
[1673791434260,8.26e-06,20717.0,20716.0,2.57532915]
[1673791435093,8.26e-06,20717.0,20716.0,2.79187786]
[1673791435609,8.26e-06,20717.0,20716.0,3.08048698]
[1673791435866,8.26e-06,20717.0,20716.0,2.79187786]
[1673791436389,8.26e-06,20717.0,20716.0,3.08048698]
[1673791437395,8.26e-06,20717.0,20716.0,2.93621082]
[1673791437640,8.26e-06,20717.0,20716.0,2.93623734]
[1673791438159,0.79073421,20717.0,20716.0,0.02358094]
[1673791438458,0.92108526,20717.0,20716.0,0.02358094]
[1673791438698,1.13739035,20717.0,20716.0,0.02358094]
[1673791438916,1.72957674,20717.0,20716.0,0.02358094]
[1673791439423,1.42534636,20717.0,20716.0,0.02358094]
[1673791439682,3.20418406,20717.0,20716.0,0.02358094]
[1673791439952,3.20418406,20717.0,20713.0,5.025e-05]
[1673791439953,0.04462777,20715.0,20713.0,5.025e-05]
[1673791440210,0.214654,20714.0,20713.0,5.025e-05]
[1673791440713,0.50224911,20714.0,20713.0,5.025e-05]
[1673791441017,0.50224911,20714.0,20711.0,0.29806729]
[1673791441222,0.50224911,20714.0,20712.0,0.02980673]
[1673791441223,0.321077,20713.0,20712.0,0.02980673]
[1673791441986,0.29259511,20714.0,20712.0,0.02980673]
[1673791442256,0.28759511,20714.0,20713.0,0.0085]
[1673791442521,0.60867211,20714.0,20713.0,0.0085]
[1673791443262,0.60867211,20714.0,20713.0,0.07106128]
[1673791443263,0.29659511,20714.0,20713.0,0.07106128]
[1673791443533,0.61767211,20714.0,20713.0,0.0085]
[1673791443762,0.60867211,20714.0,20713.0,0.0085]
[1673791444030,0.61367211,20714.0,20713.0,0.0085]
[1673791444522,0.61367211,20714.0,20711.0,0.0085]
[1673791444833,0.214654,20713.0,20711.0,0.52067093]
[1673791445062,0.29259511,20714.0,20711.0,0.52067093]
[1673791445305,0.29259511,20714.0,20711.0,0.14542512]
[1673791445823,0.28759511,20714.0,20711.0,0.52756842]
[1673791446083,0.01,20713.0,20712.0,0.45304232]
[1673791446355,0.28759511,20714.0,20712.0,0.46154232]
[1673791446595,0.01,20714.0,20713.0,0.0085]
[1673791447096,0.01,20714.0,20713.0,0.974076]
[1673791447380,0.04762511,20717.0,20713.0,1.30627565]
[1673791447595,0.04762511,20717.0,20714.0,0.10062678]
[1673791447862,0.04762511,20717.0,20715.0,1.456723]
[1673791448108,0.04762511,20717.0,20716.0,0.34378965]
[1673791448352,8.26e-06,20717.0,20716.0,1.31772565]
[1673791448644,8.26e-06,20717.0,20716.0,1.50862232]
[1673791449138,8.26e-06,20717.0,20716.0,1.31772565]
[1673791449388,8.26e-06,20717.0,20716.0,0.0925]
[1673791449389,0.08987826,20717.0,20716.0,0.0925]
[1673791449638,0.73887676,20717.0,20716.0,0.0925]
[1673791449915,0.08887826,20717.0,20716.0,0.0085]
[1673791450161,0.40995526,20717.0,20715.0,0.0085]
[1673791450399,0.38549356,20717.0,20716.0,0.02]
[1673791450645,0.38549356,20717.0,20716.0,0.0285]
[1673791451153,0.29662356,20717.0,20716.0,0.0285]
[1673791451656,0.29662356,20717.0,20716.0,0.0085]
[1673791451911,0.29762356,20717.0,20716.0,0.0085]
[1673791452157,0.29662356,20717.0,20716.0,0.19369211]
[1673791452495,0.29662356,20717.0,20716.0,0.21369211]
[1673791452927,8.26e-06,20717.0,20716.0,0.69641011]
[1673791453183,8.26e-06,20717.0,20716.0,1.02876738]
[1673791454188,8.26e-06,20717.0,20716.0,1.51148538]
[1673791455181,8.26e-06,20717.0,20716.0,1.49148538]
[1673791455678,0.00900826,20717.0,20716.0,1.49748538]
[1673791459512,0.00900826,20717.0,20716.0,1.31229327]
[1673791460107,0.00900826,20717.0,20716.0,0.82107527]
[1673791461796,0.00900826,20717.0,20716.0,0.82957527]
[1673791463545,0.00765211,20717.0,20716.0,0.82957527]
[1673791467561,0.00765211,20717.0,20716.0,1.31229327]
[1673791467808,0.00765211,20717.0,20716.0,1.5017946]
[1673791469389,0.00517188,20718.0,20717.0,15.3175787]
[1673791469642,0.00517188,20718.0,20717.0,16.2914687]
[1673791471473,0.00517188,20718.0,20717.0,16.26757013]
[1673791471722,0.00517188,20718.0,20717.0,16.25154726]
[1673791471976,0.00617188,20718.0,20717.0,16.73264943]
[1673791480760,0.00617188,20718.0,20717.0,16.44734006]
[1673791480968,0.00617188,20718.0,20717.0,16.771672]
[1673791481194,0.00617188,20718.0,20717.0,16.44734006]
[1673791481442,0.00617188,20718.0,20717.0,16.80568675]
[1673791481689,0.00617188,20718.0,20717.0,16.44734006]
[1673791481954,0.00617188,20718.0,20717.0,16.79289893]
[1673791482212,0.00617188,20718.0,20717.0,16.81615914]
[1673791482465,0.00617188,20718.0,20717.0,16.44734006]
[1673791482714,0.00617188,20718.0,20717.0,16.91325453]
[1673791482964,0.00617188,20718.0,20717.0,16.59167302]
[1673791483213,0.00617188,20718.0,20717.0,16.91881876]
[1673791483461,0.00617188,20718.0,20717.0,16.7744858]
[1673791483727,0.00617188,20718.0,20717.0,16.76362535]
[1673791483989,0.00617188,20718.0,20717.0,16.44734006]
[1673791484248,0.00617188,20718.0,20717.0,16.92424976]
[1673791484494,0.00617188,20718.0,20717.0,16.59167302]
[1673791485001,0.00617188,20718.0,20717.0,16.80814413]
[1673791485228,0.00617188,20718.0,20717.0,16.59167302]
[1673791485751,0.00617188,20718.0,20717.0,16.95091748]
[1673791486019,0.00617188,20718.0,20717.0,17.2499167]
[1673791486305,0.00617188,20718.0,20717.0,16.95091782]
[1673791487097,0.00617188,20718.0,20717.0,17.29789213]
[1673791487353,0.00617188,20718.0,20717.0,17.29789111]
[1673791487607,0.00617188,20718.0,20717.0,16.93864733]
[1673791487870,0.00617188,20718.0,20717.0,17.15511844]
[1673791488141,1.88e-06,20718.0,20717.0,16.80814413]
[1673791488434,1.126e-05,20720.0,20718.0,0.00063499]
[1673791488666,1.544e-05,20721.0,20719.0,1.39689535]
[1673791488926,1.544e-05,20721.0,20720.0,0.72804029]
[1673791489195,1.544e-05,20721.0,20720.0,0.1085]
[1673791489493,1.544e-05,20721.0,20720.0,0.40069709]
[1673791490220,1.544e-05,20721.0,20720.0,0.40869709]
[1673791490474,1.544e-05,20721.0,20720.0,0.1165]
[1673791492552,1.544e-05,20721.0,20720.0,0.599125]
[1673791494629,1.544e-05,20721.0,20720.0,0.0165]
[1673791494843,0.37385493,20721.0,20720.0,0.0165]
[1673791495086,0.36885493,20721.0,20720.0,0.0165]
[1673791495588,0.36885493,20721.0,20720.0,0.06529781]
[1673791496336,0.36885493,20721.0,20720.0,0.0165]
[1673791499167,1.47831671,20721.0,20720.0,0.0165]
[1673791499415,1.69470339,20721.0,20720.0,0.008]
[1673791499712,1.69470339,20721.0,20720.0,0.248]
[1673791499945,1.68470339,20721.0,20720.0,0.248]
[1673791500683,1.46831671,20721.0,20720.0,0.248]
[1673791500944,0.98571471,20721.0,20720.0,0.2565]
[1673791501202,0.98571471,20721.0,20720.0,0.31342616]
[1673791502234,0.98571471,20721.0,20720.0,0.255992]
[1673791502235,1.14145693,20721.0,20720.0,0.255992]
[1673791502489,1.82896118,20721.0,20720.0,0.255992]
[1673791503240,1.68470249,20721.0,20720.0,0.255992]
[1673791503501,1.54044561,20721.0,20720.0,0.255992]
[1673791503761,1.82896118,20721.0,20720.0,0.247492]
[1673791504259,1.82900488,20721.0,20720.0,0.247492]
[1673791504509,3.50674034,20721.0,20720.0,0.247492]
[1673791504831,3.82781734,20721.0,20720.0,0.247492]
[1673791505023,1.82899922,20721.0,20720.0,0.247492]
[1673791505251,1.68477071,20721.0,20720.0,0.247492]
[1673791505502,1.34639722,20721.0,20720.0,0.247492]
[1673791505752,0.86379522,20721.0,20720.0,0.30118905]
[1673791506022,0.71959621,20721.0,20720.0,0.30118905]
[1673791506276,0.50317149,20721.0,20720.0,0.30118905]
[1673791507048,0.00675624,20722.0,20720.0,1.67556583]
[1673791507311,0.00675624,20722.0,20721.0,0.33538751]
[1673791507587,0.00675624,20722.0,20721.0,2.3877891]
[1673791507832,0.00675624,20722.0,20721.0,2.53222262]
[1673791508079,0.00675624,20722.0,20721.0,2.24336059]
[1673791508344,0.00675624,20722.0,20721.0,2.02864191]
[1673791508599,0.00675624,20722.0,20721.0,2.39343506]
[1673791508885,0.00675624,20722.0,20721.0,2.2489924]
[1673791509122,0.00675624,20722.0,20721.0,2.53785443]
[1673791509387,0.00675624,20722.0,20721.0,2.39343475]
[1673791509653,0.00026776,20724.0,20722.0,0.1]
[1673791509954,0.00026776,20724.0,20723.0,1.70550848]
[1673791511274,0.00026776,20724.0,20723.0,1.71350848]
[1673791512261,0.00026776,20724.0,20723.0,2.07702191]
[1673791513039,0.00026776,20724.0,20723.0,2.06740462]
[1673791513292,0.00026776,20724.0,20723.0,2.05577623]
[1673791514845,0.00026776,20724.0,20723.0,2.05589623]
[1673791518445,0.11115776,20724.0,20723.0,1.31549775]
[1673791518701,0.11115776,20724.0,20723.0,0.83294275]
[1673791519245,0.11115776,20724.0,20723.0,0.00812]
[1673791519496,0.43441731,20724.0,20723.0,0.00812]
[1673791519746,0.11115776,20724.0,20723.0,0.00812]
[1673791520002,0.00026776,20724.0,20723.0,0.00812]
[1673791520278,0.00026776,20724.0,20723.0,0.01662]
[1673791523942,0.00026776,20724.0,20723.0,0.22995885]
[1673791524230,0.00026776,20724.0,20723.0,0.71251385]
[1673791524736,0.00026776,20724.0,20723.0,1.06845814]
[1673791526572,0.00026776,20724.0,20723.0,1.33767429]
[1673791526831,0.00026776,20724.0,20723.0,0.85511929]
[1673791527099,0.11115776,20724.0,20723.0,0.37256429]
[1673791527331,0.00026776,20724.0,20723.0,0.78621502]
[1673791527585,0.00026776,20724.0,20723.0,1.48648068]
[1673791529088,0.00026776,20724.0,20723.0,1.48636068]
[1673791529338,0.00026776,20724.0,20723.0,1.26865002]
[1673791531335,0.00026776,20724.0,20723.0,0.78609502]
[1673791531587,0.30188371,20724.0,20723.0,0.499055]
[1673791531848,1.58802471,20724.0,20723.0,0.008]
[1673791532115,0.95515605,20722.0,20718.0,0.35118006]
[1673791532371,0.14396664,20720.0,20719.0,0.83826108]
[1673791532630,0.65576959,20720.0,20719.0,0.47410217]
[1673791532892,1.43839459,20720.0,20718.0,0.00063499]
[1673791533158,0.214654,20719.0,20718.0,0.00063499]
[1673791534161,0.514654,20719.0,20718.0,0.00063499]
[1673791534441,0.305654,20719.0,20718.0,0.00063499]
[1673791534929,0.305654,20719.0,20718.0,0.00913499]
[1673791535743,0.788302,20719.0,20718.0,0.00913499]
[1673791536234,0.788302,20719.0,20718.0,0.00063499]
[1673791536235,1.57095,20719.0,20718.0,0.00063499]
[1673791536490,1.55624447,20719.0,20718.0,0.00063499]
[1673791537265,1.64724447,20719.0,20718.0,0.00063499]
[1673791537762,0.305654,20719.0,20718.0,0.32082163]
[1673791538020,0.305654,20719.0,20718.0,0.65463011]
[1673791539003,0.091,20719.0,20718.0,0.65463011]
[1673791539537,0.35528519,20721.0,20718.0,0.65463011]
[1673791540063,0.091,20719.0,20718.0,0.65463011]
[1673791540308,0.214654,20719.0,20718.0,0.65463011]
[1673791540558,0.321077,20719.0,20718.0,0.65463011]
[1673791540775,0.321077,20719.0,20718.0,0.89463011]
[1673791541074,0.28886461,20720.0,20718.0,0.89463011]
[1673791541307,0.091,20719.0,20718.0,0.89463011]
[1673791542582,0.32660899,20720.0,20718.0,0.89463011]
[1673791542887,0.41760899,20720.0,20718.0,0.89463011]
[1673791543143,0.321077,20719.0,20718.0,0.89463011]
[1673791543668,2.37473816,20722.0,20718.0,0.89463011]
[1673791543944,2.23077152,20722.0,20718.0,0.99525689]
[1673791544193,0.71397834,20721.0,20719.0,0.39524597]
[1673791544451,0.214654,20720.0,20719.0,0.86934814]
[1673791544767,0.214654,20720.0,20719.0,0.87784814]
[1673791545175,0.39290134,20721.0,20719.0,0.87784814]
[1673791545713,0.321077,20720.0,20719.0,0.87784814]
[1673791546754,0.39290134,20721.0,20719.0,0.87784814]
[1673791547006,0.091,20720.0,20719.0,0.87784814]
[1673791547258,0.412077,20720.0,20719.0,0.40374597]
[1673791548545,0.321077,20720.0,20719.0,0.40374597]
[1673791548797,0.412077,20720.0,20719.0,0.40374597]
[1673791549065,0.321077,20720.0,20719.0,0.40374597]
[1673791549325,0.412077,20720.0,20719.0,1.36049614]
[1673791549580,0.091,20720.0,20719.0,1.36049614]
[1673791550342,0.46343292,20723.0,20719.0,1.36049614]
[1673791550598,0.089127,20720.0,20719.0,1.46112292]
[1673791550852,0.089127,20720.0,20719.0,1.36049614]
[1673791551375,0.089127,20720.0,20719.0,1.44789817]
[1673791551900,0.089127,20720.0,20719.0,1.7659049]
[1673791552171,0.3883641,20724.0,20720.0,0.1]
[1673791552531,0.3883641,20724.0,20720.0,0.96294605]
[1673791552727,0.3883641,20724.0,20721.0,0.973694]
[1673791554061,0.62233074,20724.0,20721.0,0.973694]
[1673791554576,0.62233074,20724.0,20721.0,1.23568421]
[1673791554850,0.62233074,20724.0,20722.0,0.33391847]
[1673791555100,0.62233074,20724.0,20723.0,0.0085]
[1673791555365,0.57440736,20724.0,20723.0,0.0085]
[1673791555639,0.80548436,20724.0,20723.0,0.0085]
[1673791555885,0.89548436,20724.0,20723.0,0.0085]
[1673791556140,0.78906136,20724.0,20723.0,0.0085]
[1673791556630,0.48440736,20724.0,20723.0,0.0085]
[1673791556894,0.57440736,20724.0,20723.0,0.0085]
[1673791557144,1.19548436,20724.0,20723.0,0.0085]
[1673791557410,1.93150996,20724.0,20722.0,0.0085]
[1673791557717,0.00770505,20722.0,20720.0,0.4454311]
[1673791557975,0.214654,20721.0,20720.0,0.34480432]
[1673791558230,0.214654,20721.0,20720.0,0.56282465]
[1673791558479,0.214654,20721.0,20720.0,0.34480432]
[1673791559242,0.304654,20721.0,20720.0,0.34480432]
[1673791559768,0.304654,20721.0,20720.0,0.35330432]
[1673791562659,0.09,20721.0,20720.0,0.35330432]
[1673791562949,0.09,20721.0,20720.0,1.48441455]
[1673791569631,0.09,20721.0,20720.0,1.31855432]
[1673791570154,0.2340186,20721.0,20720.0,0.83592932]
[1673791570439,0.411077,20721.0,20720.0,0.83592932]
[1673791570709,0.5550956,20721.0,20720.0,0.83592932]
[1673791571012,0.411077,20721.0,20720.0,0.83592932]
[1673791571264,0.09,20721.0,20720.0,0.83592932]
[1673791571795,0.411077,20721.0,20720.0,0.83592932]
[1673791572365,0.411077,20721.0,20720.0,0.35330432]
[1673791572366,0.5550956,20721.0,20720.0,0.35330432]
[1673791572626,0.5550956,20721.0,20720.0,0.0085]
[1673791572627,0.77105966,20721.0,20720.0,0.0085]
[1673791573130,0.5550956,20721.0,20720.0,0.0085]
[1673791574883,0.77105966,20721.0,20720.0,0.0085]
[1673791575133,0.66463666,20721.0,20720.0,0.0085]
[1673791575380,0.4486726,20721.0,20720.0,0.0085]
[1673791575625,0.44998266,20721.0,20720.0,0.0085]
[1673791575870,0.77105966,20721.0,20720.0,0.0085]
[1673791576390,0.91497434,20721.0,20720.0,0.0085]
[1673791576898,0.62704106,20721.0,20720.0,0.0085]
[1673791577146,0.55547112,20721.0,20720.0,0.3335452]
[1673791577426,0.23439412,20721.0,20720.0,0.48742932]
[1673791578177,0.23439412,20721.0,20720.0,0.97005432]
[1673791580178,0.45035818,20721.0,20720.0,0.97005432]
[1673791580431,0.23439412,20721.0,20720.0,0.97005432]
[1673791580705,0.59389734,20721.0,20720.0,0.0085]
[1673791580959,2.99572159,20721.0,20720.0,0.0085]
[1673791581475,1.31599677,20721.0,20720.0,0.0085]
[1673791581721,1.31599677,20721.0,20719.0,0.0085]
[1673791581975,0.35906537,20720.0,20719.0,0.0085]
[1673791582230,0.43125405,20720.0,20719.0,0.0085]
[1673791582492,0.57565395,20720.0,20719.0,0.32276401]
[1673791582740,0.43125405,20720.0,20719.0,0.32276401]
[1673791582988,0.71918733,20720.0,20719.0,0.00843866]
[1673791583256,0.76405385,20720.0,20719.0,0.00843866]
[1673791584040,2.74397803,20720.0,20719.0,0.00843866]
[1673791584302,3.20274972,20720.0,20719.0,0.00843866]
[1673791584558,3.59431585,20720.0,20719.0,0.00843866]
[1673791584829,3.38531585,20720.0,20718.0,0.24]
[1673791585091,0.68198147,20719.0,20718.0,0.24]
[1673791585364,0.60978982,20719.0,20718.0,0.2485]
[1673791585625,1.57531764,20719.0,20718.0,0.2485]
[1673791585880,0.82633706,20719.0,20718.0,0.2485]
[1673791586133,0.82633706,20719.0,20718.0,0.24]
[1673791586650,0.53762424,20719.0,20718.0,0.24]
[1673791586914,0.79395399,20719.0,20718.0,0.24]
[1673791587178,0.93829074,20719.0,20718.0,0.24]
[1673791587487,0.77296017,20719.0,20718.0,0.24]
[1673791587719,0.91733706,20719.0,20718.0,0.24]
[1673791588230,0.77296687,20719.0,20718.0,0.24]
[1673791588489,0.55641963,20719.0,20718.0,0.52734748]
[1673791588792,0.62862424,20719.0,20718.0,0.52734748]
[1673791589003,0.77295107,20719.0,20718.0,0.52734748]
[1673791589541,0.68195107,20719.0,20718.0,0.52734748]
[1673791589800,0.55640383,20719.0,20718.0,0.52734748]
[1673791590054,0.53762424,20719.0,20718.0,0.52734748]
[1673791590314,0.91726112,20719.0,20718.0,0.24]
[1673791590574,2.46744063,20719.0,20718.0,0.24]
[1673791590841,4.02584388,20719.0,20718.0,0.24]
[1673791591106,4.02650851,20719.0,20718.0,0.24]
[1673791591322,0.31319888,20718.0,20717.0,14.77274192]
[1673791591639,3.8493656,20718.0,20717.0,14.77274192]
[1673791592151,3.48880763,20718.0,20717.0,14.77274192]
[1673791592656,3.84937675,20718.0,20717.0,14.77274192]